bitfinex/quotes_SOLUSD_20240822
["timestamp","ask_amount","ask_price","bid_price","bid_amount"]
[1724342138115,7.24912693,142.59,142.55,65.12549]
[1724342138317,7.24912693,142.57,142.55,65.12549]
[1724342138638,7.24081159,142.58,142.56,0.12549]
[1724342138840,7.24081159,142.59,142.56,0.12549]
[1724342139218,3.62025331,142.57,142.56,0.12549]
[1724342139723,3.62025331,142.57,142.55,67.2686]
[1724342140312,3.62025331,142.57,142.56,0.12549]
[1724342140730,3.62025331,142.57,142.56,73.43098]
[1724342140940,48.44685964,142.67,142.56,73.43098]
[1724342140941,3.62025331,142.59,142.56,118.43098]
[1724342141122,3.62025331,142.59,142.58,33.18]
[1724342141326,3.62025331,142.6,142.58,98.43098]
[1724342141535,3.62025331,142.6,142.59,0.25098]
[1724342141737,3.62025331,142.6,142.59,45.25098]
[1724342141935,3.62025331,142.61,142.59,45.25098]
[1724342143044,7.24081159,142.64,142.59,45.25098]
[1724342143045,3.62025331,142.6,142.59,45.25098]
[1724342143345,3.62025331,142.6,142.59,0.12549]
[1724342143521,7.24081159,142.64,142.59,0.12549]
[1724342143522,3.62025331,142.61,142.59,0.12549]
[1724342143722,3.62025331,142.61,142.56,73.18]
[1724342143937,3.62025331,142.61,142.57,45.0]
[1724342144141,3.62025331,142.6,142.58,20.12549]
[1724342144348,3.62025331,142.6,142.58,20.0]
[1724342145225,3.62025331,142.62,142.58,20.0]
[1724342147355,3.62025331,142.63,142.58,20.0]
[1724342148634,7.24081159,142.6,142.58,20.0]
[1724342150832,3.61794159,142.59,142.58,20.0]
[1724342151034,3.61794159,142.59,142.58,65.25098]
[1724342153258,7.24081159,142.61,142.58,65.25098]
[1724342153460,3.61735455,142.6,142.58,65.25098]
[1724342153631,3.61735455,142.59,142.58,20.0]
[1724342153836,3.61735455,142.59,142.56,20.0]
[1724342154037,3.61735455,142.59,142.55,22.2686]
[1724342154238,3.61735455,142.58,142.55,22.2686]
[1724342154747,3.61735455,142.58,142.55,15.7039]
[1724342155336,3.61735455,142.59,142.56,45.12549]
[1724342155746,3.61735455,142.6,142.57,0.12549]
[1724342157457,3.61735455,142.61,142.57,0.12549]
[1724342158268,3.61735455,142.63,142.56,44.87451001]
[1724342158474,4.02083415,142.62,142.56,44.87451001]
[1724342158675,4.02083415,142.61,142.56,44.87451001]
[1724342158876,3.61735455,142.63,142.56,44.87451001]
[1724342159175,4.02083415,142.62,142.56,44.87451001]
[1724342159380,3.61735455,142.63,142.56,44.87451001]
[1724342159381,4.02083415,142.61,142.56,44.87451001]
[1724342159550,3.61735455,142.63,142.56,44.87451001]
[1724342159871,4.02084958,142.62,142.56,44.87451001]
[1724342160076,4.02084958,142.61,142.56,44.87451001]
[1724342160273,3.61735455,142.62,142.56,44.87451001]
[1724342160591,4.02095044,142.61,142.57,0.12549]
[1724342160794,3.61735455,142.63,142.57,0.25098]
[1724342161071,4.0199772,142.62,142.57,21.6530018]
[1724342161285,3.61735455,142.64,142.58,45.0]
[1724342161450,10.92295613,142.63,142.58,45.0]
[1724342161654,4.02003636,142.62,142.58,45.0]
[1724342161970,3.61735455,142.63,142.58,45.0]
[1724342162184,4.02043911,142.62,142.58,45.0]
[1724342162350,3.61735455,142.64,142.58,65.0]
[1724342162554,4.02001274,142.63,142.59,0.25098]
[1724342162756,3.61735455,142.65,142.59,0.25098]
[1724342162982,4.01891485,142.64,142.59,0.25098]
[1724342163276,4.01891485,142.63,142.59,0.25098]
[1724342163472,18.87164269,142.67,142.59,0.25098]
[1724342163677,6.90191623,142.66,142.59,0.25098]
[1724342163856,6.90163692,142.65,142.59,0.25098]
[1724342164051,10.92040368,142.65,142.59,0.25098]
[1724342164260,10.92040368,142.65,142.6,20.0]
[1724342164461,3.50969934,142.66,142.61,65.25098]
[1724342164688,3.50969934,142.66,142.61,45.25098]
[1724342166781,3.50969934,142.66,142.62,20.0]
[1724342166997,3.50969934,142.66,142.63,45.12549]
[1724342172983,9.68545455,142.7,142.64,0.12549]
[1724342173488,4.01587468,142.69,142.64,0.12549]
[1724342173810,9.68545455,142.7,142.64,0.12549]
[1724342174107,19.41545455,142.72,142.64,41.52689165]
[1724342174308,4.01346234,142.71,142.65,45.12549]
[1724342174614,15.7981,142.72,142.66,0.12549]
[1724342174788,4.01323158,142.71,142.66,0.12549]
[1724342174977,3.61735455,142.73,142.66,0.12549]
[1724342175183,40.64706488,142.74,142.66,0.12549]
[1724342175184,7.63076436,142.72,142.66,0.12549]
[1724342175393,3.61735455,142.73,142.66,0.12549]
[1724342175594,4.01365254,142.72,142.66,0.12549]
[1724342175806,3.61735455,142.73,142.66,0.12549]
[1724342176019,37.19357891,142.72,142.65,45.12549]
[1724342176204,36.79735455,142.72,142.65,45.12549]
[1724342176418,4.01504489,142.71,142.65,45.12549]
[1724342176715,36.79735455,142.72,142.65,45.12549]
[1724342176912,33.18,142.7,142.64,20.0]
[1724342177118,33.18,142.7,142.63,20.0]
[1724342178392,33.18,142.7,142.64,45.0]
[1724342179312,33.18,142.72,142.64,45.0]
[1724342179620,10.91430988,142.71,142.64,45.0]
[1724342179914,4.01546297,142.7,142.64,45.0]
[1724342180115,33.18,142.72,142.64,45.0]
[1724342180300,10.91425997,142.71,142.64,45.0]
[1724342180903,33.18,142.7,142.64,45.0]
[1724342181205,10.91727991,142.69,142.63,20.0]
[1724342181387,37.19692953,142.68,142.6,15.673]
[1724342181594,4.01806576,142.67,142.6,15.673]
[1724342181791,33.18,142.68,142.6,15.673]
[1724342181995,4.01832818,142.67,142.6,15.673]
[1724342182291,33.18,142.68,142.6,15.673]
[1724342182625,6.1238,142.69,142.61,0.25098]
[1724342182910,4.01725774,142.68,142.61,65.25098]
[1724342183210,6.1238,142.69,142.61,65.25098]
[1724342183415,4.01659942,142.68,142.61,65.25098]
[1724342183594,39.3038,142.69,142.61,65.25098]
[1724342183801,10.91981487,142.68,142.61,65.25098]
[1724342184420,39.3038,142.69,142.61,65.25098]
[1724342184421,4.01759015,142.67,142.61,65.25098]
[1724342184609,39.3038,142.69,142.61,65.25098]
[1724342185195,4.01728337,142.68,142.61,65.25098]
[1724342185498,39.3038,142.69,142.61,65.25098]
[1724342185717,4.01701759,142.68,142.61,65.25098]
[1724342185911,4.01736129,142.67,142.61,65.25098]
[1724342186100,39.3038,142.69,142.61,65.25098]
[1724342186412,4.01702252,142.68,142.61,65.25098]
[1724342186621,6.1238,142.69,142.61,65.25098]
[1724342186781,4.01693513,142.68,142.61,65.25098]
[1724342186988,6.1238,142.69,142.61,65.25098]
[1724342187207,4.01693617,142.68,142.61,65.25098]
[1724342187512,6.1238,142.69,142.61,65.25098]
[1724342187722,4.01624109,142.68,142.61,65.25098]
[1724342188018,6.1238,142.69,142.61,65.25098]
[1724342188513,6.1238,142.69,142.62,20.0]
[1724342188697,16.83735455,142.72,142.64,20.0]
[1724342188894,10.91410226,142.71,142.65,46.65235281]
[1724342189201,26.35665455,142.73,142.65,59.87235281]
[1724342189710,10.9126381,142.72,142.65,58.47098]
[1724342189919,4.0144856,142.71,142.65,58.47098]
[1724342190098,26.35665455,142.73,142.65,58.47098]
[1724342190293,10.91234684,142.72,142.65,58.47098]
[1724342190501,4.01435596,142.71,142.65,58.47098]
[1724342190703,26.35665455,142.73,142.65,58.47098]
[1724342190998,10.91369911,142.72,142.65,58.47098]
[1724342191187,4.01485342,142.71,142.65,73.73808]
[1724342191396,3.61735455,142.73,142.65,73.73808]
[1724342191693,4.01485442,142.72,142.66,1.40125414]
[1724342191916,4.01485442,142.71,142.67,14.74672838]
[1724342192092,3.61735455,142.74,142.68,46.52666793]
[1724342192293,10.9124357,142.73,142.68,46.52666793]
[1724342192811,10.9124357,142.73,142.69,45.0]
[1724342193117,4.01420678,142.72,142.67,45.12549]
[1724342193313,16.91506021,142.76,142.68,40.0]
[1724342193516,10.91195989,142.75,142.69,45.12549]
[1724342193827,4.01379719,142.74,142.69,45.12549]
[1724342194030,4.01379719,142.73,142.69,45.12549]
[1724342194227,16.91506021,142.76,142.69,45.12549]
[1724342194394,10.91223955,142.75,142.69,45.12549]
[1724342194594,4.01389467,142.74,142.69,45.12549]
[1724342194814,15.6968,142.76,142.69,45.12549]
[1724342195104,4.01281839,142.75,142.69,45.12549]
[1724342195418,15.6968,142.76,142.69,45.12549]
[1724342195618,4.01263453,142.75,142.69,45.12549]
[1724342195819,15.6968,142.76,142.69,45.12549]
[1724342196024,4.01240326,142.75,142.69,45.12549]
[1724342196328,15.6968,142.76,142.69,45.12549]
[1724342196900,15.6968,142.76,142.69,45.0]
[1724342197102,37.04292745,142.75,142.68,20.0]
[1724342197330,33.03,142.75,142.67,20.0]
[1724342198235,15.6968,142.76,142.68,20.0]
[1724342198421,4.01333575,142.75,142.68,20.0]
[1724342198732,15.6968,142.76,142.69,45.12549]
[1724342200031,7.4904161,142.77,142.69,45.12549]
[1724342200209,7.4904161,142.77,142.7,21.52636252]
[1724342200403,7.4904161,142.77,142.71,46.40087025]
[1724342201018,7.4904161,142.77,142.71,45.0]
[1724342201233,7.4904161,142.77,142.72,1.40082075]
[1724342201234,4.01199227,142.76,142.72,1.40082075]
[1724342201542,7.4904161,142.77,142.71,45.0]
[1724342201715,0.8483161,142.77,142.71,45.0]
[1724342202931,0.8483161,142.77,142.72,1.52626954]
[1724342203339,0.8483161,142.77,142.72,0.12549]
[1724342203546,0.8483161,142.77,142.72,0.25098]
[1724342206743,0.8483161,142.77,142.72,20.25098]
[1724342207048,0.8483161,142.77,142.73,45.0]
[1724342207417,0.8483161,142.77,142.74,21.52610266]
[1724342207636,0.8483161,142.77,142.75,45.0]
[1724342207860,0.8483161,142.77,142.76,1.40041546]
[1724342208026,0.8483161,142.77,142.76,0.12549]
[1724342208223,0.8483161,142.77,142.76,55.17329]
[1724342208456,0.8483161,142.77,142.76,100.29878]
[1724342210649,0.8483161,142.77,142.76,80.29878]
[1724342211357,0.8483161,142.77,142.76,35.0478]
[1724342211562,0.8483161,142.77,142.76,36.4481499]
[1724342211724,0.8483161,142.77,142.76,35.0478]
[1724342212042,0.8483161,142.77,142.74,20.0]
[1724342212623,0.8483161,142.77,142.75,45.25098]
[1724342216134,0.8483161,142.77,142.76,1.40030703]
[1724342216329,0.8483161,142.77,142.76,0.25098]
[1724342216551,0.8483161,142.77,142.76,1.6512858]
[1724342216762,0.8483161,142.77,142.76,21.6512858]
[1724342216986,0.8483161,142.77,142.76,65.25098]
[1724342217298,0.8483161,142.77,142.76,86.65111211]
[1724342217478,0.8483161,142.77,142.76,85.25098]
[1724342218375,6.0739,142.87,142.78,20.0]
[1724342218576,6.0739,142.87,142.79,46.65096231]
[1724342218958,1.21618463,142.88,142.82,20.0]
[1724342219269,0.8483161,142.91,142.84,20.0]
[1724342219490,0.8483161,142.91,142.85,45.12549]
[1724342219683,0.8483161,142.91,142.85,45.0]
[1724342219988,0.8483161,142.91,142.84,46.39959022]
[1724342220166,0.8483161,142.91,142.84,66.39959022]
[1724342220362,0.8483161,142.91,142.85,0.12549]
[1724342222802,0.8483161,142.91,142.86,45.0]
[1724342223587,0.8483161,142.91,142.85,12.25837685]
[1724342225110,0.8483161,142.91,142.85,13.65785169]
[1724342225314,0.8483161,142.91,142.85,12.25837685]
[1724342226208,21.9105,142.9,142.83,20.0]
[1724342226379,33.03,142.89,142.78,53.03]
[1724342227095,33.03,142.89,142.8,20.0]
[1724342227279,33.03,142.89,142.8,30.24728789]
[1724342227618,33.03,142.89,142.81,0.12549]
[1724342227790,21.9105,142.9,142.81,55.37277789]
[1724342227987,21.9105,142.9,142.82,21.39971181]
[1724342228193,21.9105,142.9,142.83,56.77241173]
[1724342228392,21.9105,142.9,142.84,1.39964974]
[1724342228593,21.9105,142.9,142.85,0.12549]
[1724342228781,0.8483161,142.91,142.85,0.12549]
[1724342228782,0.8483161,142.91,142.85,30.24728789]
[1724342229001,0.8483161,142.91,142.86,46.3993711]
[1724342229207,0.8483161,142.91,142.87,20.0]
[1724342229411,0.8483161,142.91,142.88,1.39937102]
[1724342230606,0.8483161,142.91,142.87,20.0]
[1724342230817,0.8483161,142.91,142.88,1.39944489]
[1724342231187,0.8483161,142.91,142.87,20.0]
[1724342233012,0.8483161,142.91,142.88,1.3994031]
[1724342233208,0.8483161,142.91,142.87,20.0]
[1724342233599,0.8483161,142.91,142.87,21.39936411]
[1724342234012,0.8483161,142.91,142.87,20.0]
[1724342235217,0.8483161,142.91,142.88,1.39936509]
[1724342235433,0.8483161,142.91,142.87,20.0]
[1724342236708,0.8483161,142.91,142.86,45.0]
[1724342236915,0.8483161,142.91,142.87,20.0]
[1724342237246,0.8483161,142.91,142.82,10.24728789]
[1724342237401,33.03,142.88,142.78,20.0]
[1724342237797,1.75007227,142.87,142.77,16.128]
[1724342238103,33.03,142.88,142.77,16.128]
[1724342238919,33.03,142.88,142.77,25.35117678]
[1724342239113,33.03,142.88,142.78,20.0]
[1724342239309,33.03,142.88,142.78,82.25317678]
[1724342239520,33.03,142.88,142.78,62.25317678]
[1724342239836,55.7486,142.9,142.8,20.0]
[1724342240209,55.7486,142.9,142.81,45.0]
[1724342240409,22.7186,142.9,142.81,45.0]
[1724342240628,22.7186,142.9,142.82,0.12549]
[1724342241118,22.7186,142.9,142.82,0.25098]
[1724342241532,22.7186,142.9,142.82,0.12549]
[1724342241845,55.7486,142.9,142.81,45.0]
[1724342242946,62.7465,142.9,142.81,45.0]
[1724342244056,62.7465,142.9,142.78,53.03]
[1724342244350,62.7465,142.9,142.79,65.25098]
[1724342244855,22.7186,142.9,142.8,54.42993762]
[1724342245021,22.7186,142.9,142.81,65.25098]
[1724342245219,22.7186,142.9,142.82,21.39972606]
[1724342245419,22.7186,142.9,142.83,66.5251602]
[1724342245944,22.7186,142.9,142.83,65.12549]
[1724342247046,22.7186,142.9,142.84,1.39968046]
[1724342247470,22.7186,142.9,142.83,65.12549]
[1724342248250,22.7186,142.9,142.83,20.0]
[1724342248445,22.7186,142.9,142.84,1.39979516]
[1724342248743,22.7186,142.9,142.84,45.0]
[1724342248944,22.7186,142.9,142.83,45.0]
[1724342249163,22.7186,142.9,142.84,1.52506785]
[1724342249574,22.7186,142.9,142.84,21.52506785]
[1724342249981,22.7186,142.9,142.84,74.55506785]
[1724342250157,22.7186,142.9,142.85,45.12549]
[1724342250346,22.7186,142.9,142.86,1.39950079]
[1724342250546,22.7186,142.9,142.85,45.12549]
[1724342250748,22.7186,142.9,142.85,45.0]
[1724342251067,22.7186,142.9,142.86,1.39959631]
[1724342251442,22.7186,142.9,142.85,45.0]
[1724342251947,22.7186,142.9,142.86,1.39956521]
[1724342253585,22.7186,142.9,142.85,45.0]
[1724342254458,22.7186,142.9,142.84,20.0]
[1724342254771,22.7186,142.9,142.83,20.0]
[1724342254950,22.7186,142.9,142.82,20.0]
[1724342255887,55.7486,142.9,142.82,20.0]
[1724342256049,22.7186,142.9,142.8,20.0]
[1724342257384,22.7186,142.9,142.81,45.25098]
[1724342257565,22.7186,142.9,142.82,20.0]
[1724342258072,22.7186,142.9,142.83,0.12549]
[1724342258391,22.7186,142.9,142.83,45.12549]
[1724342259773,22.7186,142.9,142.82,20.0]
[1724342259957,22.7186,142.9,142.81,20.12549]
[1724342260159,22.7186,142.9,142.82,45.0]
[1724342260360,22.7186,142.9,142.83,20.0]
[1724342261559,22.7186,142.9,142.84,0.12549]
[1724342261776,22.7186,142.9,142.84,45.25098]
[1724342262698,22.7186,142.9,142.84,65.25098]
[1724342263190,22.7186,142.9,142.85,20.0]
[1724342263393,22.7186,142.9,142.86,45.0]
[1724342263571,22.7186,142.9,142.85,20.0]
[1724342264284,3.99951089,142.89,142.82,20.0]
[1724342264507,4.00029833,142.88,142.83,65.12549]
[1724342264665,22.7186,142.9,142.83,45.12549]
[1724342264860,4.0006897,142.89,142.83,45.12549]
[1724342265094,22.7186,142.9,142.83,45.12549]
[1724342265907,7.99998563,142.89,142.83,45.12549]
[1724342266080,3.9999918,142.88,142.84,0.12549]
[1724342266393,3.99999383,142.89,142.84,0.12549]
[1724342267269,3.99999383,142.89,142.84,40.12549]
[1724342267489,3.99999383,142.89,142.85,45.12549]
[1724342271378,3.99999383,142.89,142.83,21.39979645]
[1724342271605,4.00066945,142.88,142.83,21.39979645]
[1724342271786,3.99999383,142.89,142.82,20.12549]
[1724342272000,4.00062882,142.88,142.82,20.12549]
[1724342272316,3.99999383,142.89,142.82,21.5252782]
[1724342272519,3.99999383,142.89,142.82,20.12549]
[1724342272814,4.00062511,142.88,142.82,20.12549]
[1724342272994,3.99999383,142.89,142.82,20.12549]
[1724342273210,4.00062455,142.88,142.82,20.12549]
[1724342273396,3.99999383,142.89,142.82,20.12549]
[1724342273596,4.00016987,142.88,142.82,20.12549]
[1724342273920,22.7186,142.9,142.82,20.12549]
[1724342274214,4.0004387,142.89,142.82,20.12549]
[1724342274513,4.0004387,142.88,142.82,20.12549]
[1724342274691,35.9086,142.9,142.82,20.12549]
[1724342274897,4.00054385,142.89,142.82,20.12549]
[1724342275081,4.00054385,142.88,142.82,20.12549]
[1724342275284,4.00054385,142.88,142.81,58.19]
[1724342275285,4.00125725,142.87,142.81,45.0]
[1724342275484,10.28215725,142.86,142.79,9.22317678]
[1724342275724,6.2809,142.86,142.8,20.0]
[1724342276222,4.00317212,142.85,142.8,20.0]
[1724342276511,16.0871,142.85,142.8,20.0]
[1724342276715,4.00283093,142.84,142.8,20.0]
[1724342276917,16.0871,142.85,142.8,20.0]
[1724342277128,4.00283407,142.84,142.8,20.0]
[1724342277336,16.0871,142.85,142.8,20.0]
[1724342277512,4.00308947,142.84,142.8,20.0]
[1724342277717,16.0871,142.85,142.8,20.0]
[1724342277935,4.0027999,142.84,142.8,20.0]
[1724342278117,16.0871,142.85,142.81,45.0]
[1724342278835,16.0871,142.85,142.82,22.41317678]
[1724342279053,16.0871,142.85,142.83,1.39992053]
[1724342279210,16.0871,142.85,142.83,66.39992053]
[1724342279410,16.0871,142.85,142.83,65.0]
[1724342279934,6.2809,142.86,142.83,65.0]
[1724342280504,6.2809,142.86,142.83,20.0]
[1724342282036,6.2809,142.86,142.83,40.0]
[1724342282207,6.2809,142.86,142.84,45.12549]
[1724342282632,6.2809,142.86,142.84,45.0]
[1724342282817,6.2809,142.86,142.83,20.0]
[1724342283929,6.2809,142.86,142.84,1.39982193]
[1724342284936,6.2809,142.86,142.83,65.0]
[1724342285141,6.2809,142.86,142.84,1.52525187]
[1724342285434,15.8347,142.89,142.84,1.52525187]
[1724342285642,4.00061244,142.88,142.84,21.52525187]
[1724342285938,15.8347,142.89,142.85,45.0]
[1724342286119,15.8347,142.89,142.86,1.39954481]
[1724342286324,4.00044401,142.88,142.86,1.39954481]
[1724342286632,15.8347,142.89,142.85,45.0]
[1724342286945,3.99948907,142.88,142.86,1.39964069]
[1724342287113,15.8347,142.89,142.86,1.39964069]
[1724342287314,4.00022673,142.88,142.86,1.39964069]
[1724342287623,15.8347,142.89,142.86,1.39964069]
[1724342287822,4.0005216,142.88,142.86,1.39964069]
[1724342288128,15.8347,142.89,142.85,45.0]
[1724342288336,4.00173897,142.88,142.85,45.0]
[1724342288537,4.00173897,142.88,142.84,0.12549]
[1724342288538,15.8347,142.89,142.86,1.39960627]
[1724342288705,4.0017199,142.88,142.86,1.39960627]
[1724342288901,15.8347,142.89,142.86,1.39960627]
[1724342289127,4.00172305,142.88,142.86,1.39960627]
[1724342289343,15.8347,142.89,142.84,45.12549]
[1724342289635,4.00168947,142.88,142.86,1.39961724]
[1724342289804,6.2696,142.9,142.85,20.0]
[1724342290134,3.99940116,142.89,142.86,65.0]
[1724342290322,6.2696,142.9,142.86,20.0]
[1724342290506,4.00001659,142.89,142.86,20.0]
[1724342290702,6.2696,142.9,142.86,20.0]
[1724342290937,4.00029717,142.89,142.87,1.39945269]
[1724342291108,6.2696,142.9,142.87,45.0]
[1724342291305,0.8483161,142.91,142.87,45.0]
[1724342291623,0.8483161,142.91,142.88,1.39940271]
[1724342291828,0.8483161,142.91,142.88,21.39940271]
[1724342292033,3.99958124,142.9,142.88,21.39940271]
[1724342292221,0.8483161,142.91,142.88,21.39940271]
[1724342292538,0.8483161,142.91,142.89,45.0]
[1724342292717,0.8483161,142.91,142.9,1.39919024]
[1724342293245,4.84718444,142.91,142.89,45.0]
[1724342293422,0.8483161,142.91,142.89,45.0]
[1724342294838,0.8483161,142.91,142.88,20.0]
[1724342295044,0.8483161,142.91,142.86,20.0]
[1724342295937,0.8483161,142.91,142.87,20.0]
[1724342296246,0.8483161,142.91,142.88,65.12549]
[1724342297125,0.8483161,142.91,142.88,65.0]
[1724342298835,0.8483161,142.91,142.89,1.39922601]
[1724342299034,0.8483161,142.91,142.88,65.0]
[1724342299232,0.8483161,142.91,142.89,0.12549]
[1724342299834,0.8483161,142.91,142.89,1.52467867]
[1724342300664,0.8483161,142.91,142.89,34.69467867]
[1724342300833,0.8483161,142.91,142.9,65.0]
[1724342301025,0.8483161,142.91,142.9,65.12549]
[1724342301221,0.8483161,142.91,142.9,65.0]
[1724342301427,0.8483161,142.91,142.9,21.39914364]
[1724342301733,0.8483161,142.91,142.88,20.0]
[1724342305260,0.8483161,142.91,142.89,45.12549]
[1724342305557,0.8483161,142.91,142.89,45.0]
[1724342306365,0.8483161,142.91,142.88,20.0]
[1724342308047,0.8483161,142.91,142.89,45.0]
[1724342310343,0.8483161,142.91,142.89,65.0]
[1724342310543,0.8483161,142.91,142.9,0.25098]
[1724342312243,0.8483161,142.91,142.9,13.42098]
[1724342312454,0.8483161,142.91,142.9,78.42098]
[1724342312760,0.8483161,142.91,142.9,65.25098]
[1724342313269,0.8483161,142.91,142.9,20.0]
[1724342313642,0.8483161,142.91,142.9,1.39913949]
[1724342313836,0.8483161,142.91,142.89,45.0]
[1724342314066,0.8483161,142.91,142.9,21.39915916]
[1724342316172,0.8483161,142.91,142.9,65.12549]
[1724342317173,0.8483161,142.91,142.9,65.0]
[1724342317345,0.8483161,142.91,142.9,20.0]
[1724342317552,0.8483161,142.91,142.87,20.0]
[1724342317879,0.8483161,142.91,142.88,20.0]
[1724342318764,0.8483161,142.91,142.89,45.0]
[1724342319080,0.8483161,142.91,142.87,20.12549]
[1724342319278,0.8483161,142.91,142.88,45.12549]
[1724342323175,0.8483161,142.91,142.9,1.39913602]
[1724342323378,0.8483161,142.91,142.89,20.0]
[1724342323673,0.8483161,142.91,142.9,45.0]
[1724342325202,0.8483161,142.91,142.9,45.12549]
[1724342325503,0.8483161,142.91,142.9,58.29549]
[1724342325663,0.8483161,142.91,142.9,78.42098]
[1724342326166,0.8483161,142.91,142.9,65.25098]
[1724342326693,0.8483161,142.91,142.9,65.12549]
[1724342326864,0.8483161,142.91,142.9,20.0]
[1724342327063,0.8483161,142.91,142.9,21.39913786]
[1724342327271,0.8483161,142.91,142.9,20.0]
[1724342327975,0.8483161,142.91,142.89,20.0]
[1724342329206,0.8483161,142.91,142.89,8.71115733]
[1724342329371,0.8483161,142.91,142.9,20.0]
[1724342332697,4.8476004,142.91,142.86,33.17]
[1724342332893,0.8483161,142.91,142.86,8.71115733]
[1724342333100,4.00035782,142.9,142.86,8.71115733]
[1724342333402,0.8483161,142.91,142.86,8.71115733]
[1724342333607,4.00036119,142.9,142.86,8.71115733]
[1724342333979,0.8483161,142.91,142.86,8.71115733]
[1724342334180,8.29021203,142.9,142.87,20.0]
[1724342334380,4.28931554,142.89,142.87,20.0]
[1724342334581,0.8483161,142.91,142.87,20.0]
[1724342334795,4.28894012,142.9,142.87,28.71115733]
[1724342334998,0.8483161,142.91,142.87,28.71115733]
[1724342335175,4.28910508,142.9,142.87,28.71115733]
[1724342335379,0.8483161,142.91,142.88,0.12549]
[1724342335577,8.28881146,142.9,142.87,28.71115733]
[1724342335801,0.8483161,142.91,142.87,28.71115733]
[1724342336008,8.28881226,142.9,142.87,28.71115733]
[1724342336184,0.8483161,142.91,142.87,28.71115733]
[1724342336397,8.28881241,142.9,142.87,28.71115733]
[1724342336574,4.28908899,142.89,142.87,28.71115733]
[1724342336775,0.8483161,142.91,142.87,28.71115733]
[1724342337193,8.29067228,142.9,142.87,28.71115733]
[1724342337396,4.28960739,142.89,142.87,28.71115733]
[1724342337619,0.8483161,142.91,142.87,28.71115733]
[1724342337814,8.28961566,142.9,142.87,28.71115733]
[1724342338096,4.28906069,142.89,142.87,28.71115733]
[1724342338292,0.8483161,142.91,142.87,28.71115733]
[1724342338520,8.29019471,142.9,142.87,28.71115733]
[1724342338821,8.29019471,142.89,142.87,28.71115733]
[1724342339033,0.8483161,142.91,142.87,28.71115733]
[1724342339322,8.29003003,142.9,142.87,28.71115733]
[1724342339626,4.28921685,142.89,142.87,28.71115733]
[1724342339827,0.8483161,142.91,142.87,28.71115733]
[1724342339997,8.29000274,142.9,142.87,28.71115733]
[1724342340201,4.28920543,142.89,142.87,28.71115733]
[1724342340403,0.8483161,142.91,142.87,28.71115733]
[1724342340604,4.28922349,142.9,142.87,28.71115733]
[1724342340835,4.28922349,142.89,142.87,28.71115733]
[1724342341127,0.8483161,142.91,142.87,28.71115733]
[1724342341324,4.00082249,142.9,142.87,28.71115733]
[1724342341500,0.8483161,142.91,142.87,28.71115733]
[1724342341704,0.8483161,142.91,142.88,0.12549]
[1724342342024,4.00081534,142.9,142.88,0.12549]
[1724342342197,0.8483161,142.91,142.88,0.12549]
[1724342342396,4.00017515,142.9,142.88,0.12549]
[1724342342619,0.8483161,142.91,142.88,0.12549]
[1724342342994,4.00039289,142.9,142.88,0.12549]
[1724342343213,0.8483161,142.91,142.88,0.12549]
[1724342343415,4.00041273,142.9,142.88,13.29549]
[1724342343622,0.8483161,142.91,142.88,13.29549]
[1724342344027,0.8483161,142.91,142.89,8.71115733]
[1724342344200,0.8483161,142.91,142.9,1.39917488]
[1724342344745,0.8483161,142.91,142.89,8.71115733]
[1724342345410,0.8483161,142.91,142.9,13.17]
[1724342345736,0.8483161,142.91,142.9,58.42098]
[1724342346241,0.8483161,142.91,142.9,79.82002258]
[1724342346403,0.8483161,142.91,142.9,79.81998852]
[1724342346726,0.8483161,142.91,142.9,78.42098]
[1724342349427,0.8483161,142.91,142.9,99.82000001]
[1724342349607,22.748312,143.0,142.92,20.0]
[1724342349808,3.99551357,142.99,142.93,78.29549]
[1724342350128,3.99551357,142.98,142.94,1.398763]
[1724342350435,3.99551357,142.97,142.93,78.29549]
[1724342350602,21.5302,143.0,142.93,78.29549]
[1724342350802,34.7002,143.0,142.93,78.29549]
[1724342351018,34.7002,143.0,142.93,65.12549]